bitfinex-derivatives/quotes_ETHF0:USTF0_20241024
["timestamp","ask_amount","ask_price","bid_price","bid_amount"]
[1729787855008,0.39663,2523.2,2523.1,0.39661]
[1729787855414,0.413,2523.3,2522.9,5.99148588]
[1729787855620,0.413,2523.3,2522.7,2.78368588]
[1729787855815,0.39662,2523.2,2523.1,0.39661]
[1729787856422,0.413,2523.3,2523.0,0.39663]
[1729787856423,0.39664,2523.1,2523.0,0.39663]
[1729787856725,0.39662,2523.2,2523.1,0.39661]
[1729787857826,0.413,2523.3,2523.0,0.39664]
[1729787857827,0.39665,2523.1,2523.0,0.39664]
[1729787858026,1.40453,2523.3,2522.9,0.39666]
[1729787858027,0.39667,2523.0,2522.9,0.39666]
[1729787858215,0.4278,2523.0,2522.7,2.78368588]
[1729787858446,0.4278,2523.0,2522.6,3.60449]
[1729787858447,0.39669,2522.7,2522.6,3.60449]
[1729787858620,0.39669,2522.7,2522.6,0.39669]
[1729787859317,0.39671,2522.7,2522.6,0.3967]
[1729787859523,0.4092,2522.8,2522.3,3.77557588]
[1729787859824,0.3967,2522.7,2522.6,0.39669]
[1729787860619,0.4092,2522.8,2522.5,2.78368588]
[1729787860813,0.80588,2522.8,2522.7,0.39669]
[1729787862805,0.39671,2522.7,2522.6,0.3967]
[1729787863601,0.4092,2522.8,2522.7,0.39669]
[1729787863602,0.80589,2522.8,2522.7,0.39669]
[1729787863917,0.4092,2522.8,2522.7,3.18037588]
[1729787864095,0.81706,2522.9,2522.8,0.39668]
[1729787864496,0.4204,2522.9,2522.8,0.39668]
[1729787866107,0.81706,2522.9,2522.8,0.39668]
[1729787867303,0.3967,2522.8,2522.7,0.39668]
[1729787867508,0.81708,2522.9,2522.8,0.39668]
[1729787869304,0.4204,2522.9,2522.8,0.39668]
[1729787870509,0.4278,2523.0,2522.7,2.78368588]
[1729787870701,0.4278,2523.0,2522.9,0.39666]
[1729787872607,3.2078,2523.3,2522.9,7.14434588]
[1729787872812,1.24427,2523.6,2523.5,0.39654]
[1729787875403,0.8477,2523.6,2523.5,0.39654]
[1729787875604,1.24425,2523.6,2523.5,0.39654]
[1729787875799,0.8477,2523.6,2523.5,0.39654]
[1729787878313,1.24425,2523.6,2523.5,0.39654]
[1729787880205,0.39658,2523.5,2523.4,0.39657]
[1729787880707,0.39661,2523.3,2523.2,0.3966]
[1729787880908,0.39659,2523.4,2523.3,0.39658]
[1729787881907,0.39663,2523.2,2523.1,0.39661]
[1729787882415,4.63369,2523.6,2522.9,5.35434588]
[1729787882416,0.3966,2523.4,2523.3,0.39658]
[1729787882914,0.39662,2523.3,2523.2,0.3966]
[1729787883220,0.39664,2523.1,2523.0,0.39663]
[1729787883509,3.6423,2523.6,2522.9,0.39666]
[1729787883510,0.39666,2523.0,2522.9,0.39666]
[1729787884014,0.4403,2523.1,2522.5,6.98327588]
[1729787884308,0.39667,2522.9,2522.8,0.39666]
[1729787884610,0.4403,2523.1,2522.7,0.99173]
[1729787884810,0.4403,2523.1,2522.9,0.39665]
[1729787884811,0.39666,2523.0,2522.9,0.39665]
[1729787885207,0.39668,2522.9,2522.8,0.39667]
[1729787886811,0.39671,2522.7,2522.6,0.39669]
[1729787887517,0.39669,2522.9,2522.8,0.39667]
[1729787887811,0.3967,2522.8,2522.7,0.39668]
[1729787888216,3.2078,2523.0,2522.4,0.99185]
[1729787888415,0.8242,2522.7,2522.6,0.39669]
[1729787890509,0.4275,2522.7,2522.6,0.39669]
[1729787893120,1.41505,2523.2,2523.1,0.39663]
[1729787893121,0.4235,2523.2,2523.1,0.39663]
[1729787893315,0.82011,2523.2,2523.1,0.39663]
[1729787893520,0.4235,2523.2,2523.1,0.39663]
[1729787894524,0.8496,2523.3,2523.2,0.39661]
[1729787895117,1.2462,2523.3,2523.1,0.39662]
[1729787895321,0.8496,2523.3,2523.2,0.39661]
[1729787896224,1.2462,2523.3,2523.1,0.39662]
[1729787896420,1.2462,2523.3,2523.0,2.78368588]
[1729787896421,0.8496,2523.3,2523.2,0.39661]
[1729787896623,0.8496,2523.3,2523.0,2.78368588]
[1729787896820,1.2462,2523.3,2523.1,0.39662]
[1729787900230,1.2462,2523.3,2523.2,0.39661]
[1729787900624,1.2462,2523.3,2523.1,0.39662]
[1729787900825,3.2078,2523.4,2523.0,3.77529588]
[1729787901027,3.2078,2523.4,2523.2,2.78368588]
[1729787901229,3.2078,2523.4,2523.0,0.99161]
[1729787901230,4.01409,2523.4,2523.3,0.3966]
[1729787901731,3.6175,2523.4,2523.3,0.3966]
[1729787902520,0.4097,2523.4,2523.3,0.3966]
[1729787903834,0.4097,2523.4,2523.3,4.3598]
[1729787904228,0.8645,2523.5,2523.3,3.9632]
[1729787904432,0.4196,2523.5,2523.4,0.39658]
[1729787907032,0.81617,2523.5,2523.4,0.39658]
[1729787907731,0.4196,2523.5,2523.4,0.39658]
[1729787909234,0.81617,2523.5,2523.4,0.39658]
[1729787910035,0.39662,2523.2,2523.0,0.39665]
[1729787910227,0.8466,2523.1,2523.0,0.39665]
[1729787910427,0.8466,2523.1,2523.0,0.52067131]
[1729787910636,0.8466,2523.1,2523.0,0.39665]
[1729787912125,0.8466,2523.1,2523.0,3.18033588]
[1729787913129,0.4177,2523.1,2523.0,7.14353588]
[1729787913335,0.81749,2523.4,2523.0,7.14353588]
[1729787913534,0.8532,2523.4,2523.3,0.3966]
[1729787915539,3.2078,2523.5,2523.3,0.3966]
[1729787915732,0.8308,2523.7,2523.6,0.39655]
[1729787916146,0.8308,2523.7,2523.6,6.38803588]
[1729787919838,0.8308,2523.7,2523.6,3.18023588]
[1729787921642,1.22734,2523.7,2523.6,0.39655]
[1729787926046,1.22734,2523.7,2523.4,3.2078]
[1729787926047,0.39656,2523.6,2523.5,0.39654]
[1729787926248,0.39656,2523.6,2523.5,0.39656]
[1729787928054,1.22734,2523.7,2523.6,0.39654]
[1729787928348,0.8308,2523.7,2523.6,0.39654]
[1729787928547,1.22733,2523.7,2523.6,0.39654]
[1729787928951,0.8308,2523.7,2523.6,0.39654]
[1729787930948,0.4138,2523.8,2523.7,0.39653]
[1729787934455,0.4138,2523.8,2523.7,1.68204213]
[1729787941063,0.81031,2523.8,2523.7,1.68204213]
[1729787941360,0.4138,2523.8,2523.7,1.68204213]
[1729787941953,0.81031,2523.8,2523.7,1.68204213]
[1729787942653,0.4138,2523.8,2523.7,1.68204213]
[1729787943762,0.81031,2523.8,2523.7,1.68204213]
[1729787943957,0.4138,2523.8,2523.7,1.68204213]
[1729787945254,0.81031,2523.8,2523.7,1.68204213]
[1729787945452,0.4138,2523.8,2523.7,1.68204213]
[1729787945764,0.81031,2523.8,2523.7,1.68204213]
[1729787948265,0.4138,2523.8,2523.7,1.68204213]
[1729787949166,1.2657,2523.9,2523.8,0.39651]
[1729787949365,1.2657,2523.9,2523.8,1.68202213]
[1729787955073,0.8692,2523.9,2523.8,1.68202213]
[1729787955379,1.2657,2523.9,2523.8,1.68202213]
[1729787955683,1.2657,2523.9,2523.8,0.39651]
[1729787956176,0.39651,2523.8,2523.7,0.39652]
[1729787956382,0.39651,2523.8,2523.7,1.68203213]
[1729787957277,1.26571,2523.9,2523.8,0.39651]
[1729787957485,5.4055631,2523.9,2523.8,1.68202213]
[1729787957685,1.26571,2523.9,2523.8,1.68202213]
[1729787959877,5.92304474,2523.9,2523.8,1.68202213]
[1729787960073,0.39655,2523.7,2523.6,0.39652]
[1729787960286,4.55572794,2523.7,2523.6,0.39652]
[1729787960582,4.55572794,2523.7,2523.6,1.68203213]
[1729787961579,0.39653,2523.7,2523.6,1.68203213]
[1729787961877,5.05386474,2523.7,2523.6,0.39652]
[1729787962276,6.33937687,2523.7,2523.6,0.39652]
[1729787962680,5.05386474,2523.7,2523.6,0.39652]
[1729787963775,5.05386474,2523.7,2523.6,2.42604301]
[1729787964181,0.39653,2523.7,2523.6,1.80603293]
[1729787964384,0.39653,2523.7,2523.6,2.42604348]
[1729787964579,0.39653,2523.7,2523.6,1.80603293]
[1729787964985,0.39653,2523.7,2523.6,2.42604202]
[1729787965378,0.39653,2523.7,2523.6,1.80603293]
[1729787967685,1.28551213,2523.8,2523.6,2.42603771]
[1729787967884,0.39652,2523.8,2523.7,1.68204213]
[1729787968484,0.39652,2523.8,2523.7,1.80604138]
[1729787969685,0.39652,2523.8,2523.7,1.68204213]
[1729787969889,0.39652,2523.8,2523.7,1.80603926]
[1729787970485,2.55122213,2523.9,2523.8,0.39651]
[1729787971289,7.20855687,2523.9,2523.8,0.39651]
[1729787972086,2.55122213,2523.9,2523.8,0.39651]
[1729787972394,0.39651,2523.8,2523.7,1.68203213]
[1729787972690,4.55794265,2523.8,2523.7,1.68203213]
[1729787973694,4.16143265,2523.8,2523.7,1.68203213]
[1729787973995,4.55794265,2523.8,2523.7,1.68203213]
[1729787976589,5.84345478,2523.8,2523.7,0.39652]
[1729787976794,0.39655,2523.7,2523.6,0.39653]
[1729787977096,5.84372775,2523.7,2523.6,0.39653]
[1729787977300,5.84372775,2523.7,2523.5,1.28551213]
[1729787977595,1.68206213,2523.7,2523.6,0.39654]
[1729787978092,0.39661,2523.3,2523.2,0.39659]
[1729787978396,0.39661,2523.3,2523.1,3.2078]
[1729787978397,0.39661,2523.2,2523.1,4.88992213]
[1729787978600,1.22051,2523.2,2523.1,4.88992213]
[1729787978896,5.38199886,2523.2,2523.1,5.63407886]
[1729787979400,6.46922213,2523.2,2523.1,3.2078]
[1729787982194,0.39668,2522.8,2522.7,1.68218213]
[1729787982396,1.68219213,2522.8,2522.7,0.39667]
[1729787982602,1.68219213,2522.8,2522.7,1.68218213]
[1729787984097,1.68219213,2522.8,2522.7,1.28551213]
[1729787984295,0.3967,2522.6,2522.5,4.89002213]
[1729787984497,1.68221213,2522.6,2522.5,0.39671]
[1729787984705,1.68221213,2522.6,2522.5,1.28551213]
[1729787985403,1.68221213,2522.6,2522.5,1.68223213]
[1729787987807,2.54791213,2522.7,2522.6,0.3967]
[1729787988004,2.54791213,2522.7,2522.5,1.28551213]
[1729787988005,2.15121213,2522.7,2522.5,1.28551213]
[1729787988205,0.3967,2522.6,2522.5,1.68221213]
[1729787989507,1.709,2522.7,2522.6,0.3967]
[1729787989705,1.709,2522.7,2522.6,1.68221213]
[1729787989900,6.95851213,2522.7,2522.6,1.68221213]
[1729787991309,0.39673,2522.5,2522.4,0.39672]
[1729787991613,0.39673,2522.5,2522.1,1.83823]
[1729787991614,0.39675,2522.4,2522.3,0.39673]
[1729787991803,1.68226213,2522.4,2522.3,0.39673]
[1729787992912,5.25031213,2522.4,2522.1,0.4139]
[1729787993107,3.2078,2522.8,2521.9,3.2078]
[1729787993108,1.28551213,2522.2,2521.9,3.2078]
[1729787993304,1.28551213,2522.0,2521.9,0.39679]
[1729787993504,1.68230213,2522.1,2521.9,1.28551213]
[1729787993704,1.68230213,2522.1,2522.0,0.3968]
[1729787994106,5.64710213,2522.1,2522.0,0.3968]
[1729787996109,1.68230213,2522.1,2522.0,0.3968]
[1729787996317,5.64710213,2522.1,2522.0,0.3968]
[1729787996713,1.68230213,2522.1,2522.0,0.3968]
[1729787996909,5.64710213,2522.1,2522.0,0.3968]
[1729787997710,1.68230213,2522.1,2522.0,0.3968]
[1729787997914,5.64710213,2522.1,2522.0,0.3968]
[1729787998710,1.68230213,2522.1,2522.0,0.3968]
[1729787999017,5.64710213,2522.1,2522.0,0.3968]
[1729788001519,5.64710213,2522.1,2521.8,1.28551213]
[1729788001520,0.39683,2521.9,2521.8,0.39681]
[1729788001725,1.68234213,2521.9,2521.8,0.39681]
[1729788001913,1.68234213,2521.9,2521.8,1.68232213]
[1729788002109,1.68234213,2521.9,2521.8,0.39681]
[1729788002815,0.39685,2521.8,2521.7,0.39683]
[1729788003015,2.94056213,2521.8,2521.7,0.39683]
[1729788003610,0.39686,2521.7,2521.6,0.39685]
[1729788003814,1.28551213,2521.7,2521.2,9.26862261]
[1729788004017,1.28551213,2521.4,2521.3,5.31152213]
[1729788004319,1.28551213,2521.4,2521.3,2.10372213]
[1729788004514,1.2582,2521.8,2521.3,1.70681213]
[1729788004818,1.73031213,2521.8,2521.7,1.68236213]
[1729788005017,2.12714213,2521.8,2521.7,1.68236213]
[1729788005521,1.73031213,2521.8,2521.7,1.68236213]
[1729788005722,1.73031213,2521.8,2521.7,2.12206213]
[1729788005922,2.12714213,2521.8,2521.7,2.12206213]
[1729788006118,2.12714213,2521.8,2521.7,0.83655]
[1729788006426,1.73031213,2521.8,2521.7,0.83655]
[1729788006619,1.73031213,2521.8,2521.4,0.99223]
[1729788006825,0.84164,2521.8,2521.7,0.39685]
[1729788008018,0.4448,2521.8,2521.7,0.39685]
[1729788008218,1.73031213,2521.8,2521.7,0.39685]
[1729788009233,2.12714213,2521.8,2521.7,0.39685]
[1729788009625,0.84163,2521.8,2521.7,0.39685]
[1729788009830,2.12714213,2521.8,2521.7,0.39685]
[1729788010921,1.73031213,2521.8,2521.7,0.39685]
[1729788011125,0.4108,2522.0,2521.7,1.28551213]
[1729788011321,1.69631213,2522.0,2521.9,0.39681]
[1729788011821,1.28551213,2522.0,2521.9,0.81111]
[1729788012325,4.0691,2522.2,2521.9,1.69981213]
[1729788012523,3.2078,2522.2,2522.1,1.68229213]
[1729788012826,0.99173,2522.7,2522.3,0.39674]
[1729788012827,0.39675,2522.4,2522.3,0.39674]
[1729788013621,1.68226213,2522.4,2522.3,0.39674]
[1729788014125,0.39672,2522.6,2522.3,1.28551213]
[1729788014315,0.39672,2522.6,2522.5,0.39672]
[1729788014724,0.39672,2522.5,2522.4,1.68224213]
[1729788015029,0.39672,2522.6,2522.5,0.39671]
[1729788015528,0.39673,2522.5,2522.4,0.39672]
[1729788015722,0.39673,2522.5,2522.3,0.4152]
[1729788015723,1.28551213,2522.5,2522.3,0.4152]
[1729788016022,0.39675,2522.3,2522.2,0.39676]
[1729788016224,1.68226213,2522.3,2522.2,0.39676]
[1729788016428,2.49966213,2522.3,2522.2,0.39676]
[1729788017023,1.68226213,2522.3,2522.2,0.39676]
[1729788018030,0.4033,2522.5,2522.2,1.28551213]
[1729788018227,0.80003,2522.5,2522.4,0.39674]
[1729788018532,2.08554213,2522.5,2522.4,0.39674]
[1729788018920,0.4033,2522.5,2522.4,0.39674]
[1729788019125,1.68881213,2522.5,2522.4,0.39674]
[1729788019322,1.68881213,2522.5,2522.4,0.84284]
[1729788019823,2.08553213,2522.5,2522.4,0.84284]
[1729788020331,1.68881213,2522.5,2522.4,0.84284]
[1729788020929,2.08553213,2522.5,2522.4,0.84284]
[1729788022832,2.08553213,2522.5,2522.4,0.39674]
[1729788023439,2.08553213,2522.5,2522.1,2.71997213]
[1729788023440,8.86061213,2522.5,2521.9,4.19984]
[1729788023635,0.39678,2522.2,2522.1,0.39677]
[1729788024331,0.4032,2522.3,2521.9,3.2078]
[1729788024540,1.2104,2522.1,2522.0,0.3968]
[1729788024931,2.49591213,2522.1,2522.0,0.3968]
[1729788025740,2.49591213,2522.1,2522.0,1.68231213]
[1729788028435,2.49591213,2522.1,2522.0,0.3968]
[1729788029046,2.49591213,2522.1,2521.9,4.49331213]
[1729788029047,2.09911213,2522.1,2521.9,3.2078]
[1729788029346,2.09911213,2522.1,2520.6,22.45124334]
[1729788029347,0.39684,2521.9,2521.8,0.39682]
[1729788029537,1.68235213,2521.9,2521.8,0.39682]
[1729788029847,2.11905213,2521.9,2521.8,0.39682]
[1729788032145,0.39685,2521.7,2521.6,0.39686]
[1729788032344,1.68236213,2521.7,2521.6,0.39686]
[1729788032540,0.3969,2521.5,2521.4,0.39687]
[1729788032752,1.68241213,2521.5,2521.4,0.39687]
[1729788033245,1.69121213,2521.5,2521.4,0.39687]
[1729788033440,1.69121213,2521.5,2521.4,1.68238213]
[1729788033638,0.881,2521.6,2521.4,1.28551213]
[1729788033946,0.881,2521.6,2521.5,1.68239213]
[1729788034142,0.4412,2521.6,2521.5,1.68239213]
[1729788034446,0.3968,2522.1,2522.0,0.39678]
[1729788034640,6.93381213,2522.1,2522.0,0.39678]
[1729788035039,2.96901213,2522.1,2522.0,0.39678]
[1729788035443,1.2867,2522.1,2522.0,0.39678]
[1729788035649,2.57221213,2522.1,2522.0,0.39678]
[1729788036342,1.2867,2522.1,2522.0,0.39678]
[1729788037448,0.8469,2522.1,2522.0,0.39678]
[1729788037746,3.2078,2522.2,2522.1,0.39678]
[1729788038746,3.60457,2522.2,2522.1,0.39678]
[1729788039548,0.39677,2522.2,2522.1,0.39678]
[1729788040242,3.22941935,2522.3,2521.8,0.4189]
[1729788040445,0.39681,2522.0,2521.9,0.3968]
[1729788040639,0.39683,2521.9,2521.8,0.39682]
[1729788040846,1.23633,2521.9,2521.8,0.39682]
[1729788041047,0.8395,2521.9,2521.8,0.39682]
[1729788041446,1.23631,2521.9,2521.8,0.39682]
[1729788043352,0.8395,2521.9,2521.8,0.39682]
[1729788043553,0.4149,2521.9,2521.8,0.39682]
[1729788043944,0.4149,2521.9,2521.6,1.84385]
[1729788043945,0.80539,2522.1,2521.7,3.2078]
[1729788044150,0.80539,2522.1,2522.0,0.3968]
[1729788044351,0.4086,2522.1,2522.0,0.3968]
[1729788044549,4.45117,2522.2,2522.1,0.39678]
[1729788045443,4.0544,2522.2,2521.8,1.43827]
[1729788045652,0.3968,2522.1,2522.0,0.39678]
[1729788045859,4.0544,2522.2,2521.9,0.3968]
[1729788045860,0.39681,2522.0,2521.9,0.3968]
[1729788046252,0.39681,2522.0,2521.7,4.19991]
[1729788046253,5.04634,2522.2,2521.7,3.2078]
[1729788046554,0.82663,2521.9,2521.8,0.39682]
[1729788049756,0.39681,2522.0,2521.6,1.85346]
[1729788049955,4.4924,2522.2,2522.1,0.39678]
[1729788050148,4.88917,2522.2,2522.1,0.39678]
[1729788051153,4.4924,2522.2,2522.1,0.39678]
[1729788051355,1.2846,2522.2,2522.1,0.39678]
[1729788052555,3.2078,2522.5,2522.3,0.39673]
[1729788052764,0.84304,2522.4,2522.3,0.39673]
[1729788056764,0.4463,2522.4,2522.0,0.8617]
[1729788056960,0.84301,2522.4,2522.3,0.39672]
[1729788058366,2.12933235,2522.4,2522.3,0.39672]
[1729788058561,2.12933235,2522.4,2522.3,1.68304235]
[1729788058562,0.4463,2522.4,2522.3,1.68304235]
[1729788058763,1.73262235,2522.4,2522.3,0.39672]
[1729788059969,2.12932235,2522.4,2522.3,0.39672]
[1729788060172,1.73262235,2522.4,2522.3,0.39672]
[1729788060366,2.12932235,2522.4,2522.3,0.39672]
[1729788060567,6.09412235,2522.4,2522.3,0.39672]
[1729788060966,0.39674,2522.2,2522.1,0.39672]
[1729788061177,1.68306235,2522.2,2522.1,0.39672]
[1729788061768,0.39679,2522.0,2521.9,0.39677]
[1729788061971,0.39679,2521.9,2521.8,0.39679]
[1729788062176,2.92611235,2521.9,2521.8,0.39679]
[1729788062384,0.39682,2521.8,2521.7,0.3968]
[1729788062673,1.68314235,2521.8,2521.7,0.3968]
[1729788063272,0.39684,2521.6,2521.5,0.39682]
[1729788063471,1.68315235,2521.6,2521.5,0.39682]
[1729788063667,0.39686,2521.5,2521.4,0.39685]
[1729788063871,2.12548235,2521.5,2521.4,0.39685]
[1729788064084,0.39686,2521.4,2521.3,3.60467]
[1729788064379,0.82806,2521.4,2521.3,3.60467]
[1729788065180,0.82806,2521.4,2521.3,3.2078]
[1729788065475,0.82806,2521.4,2521.3,3.60467]
[1729788067979,0.82806,2521.4,2521.3,3.2078]
[1729788068278,0.8375,2521.4,2521.1,0.8412]
[1729788068484,0.39688,2521.3,2521.2,0.39687]
[1729788068780,0.39688,2521.3,2521.1,0.8412]
[1729788068781,1.23437,2521.4,2521.3,0.39687]
[1729788068977,1.23437,2521.4,2521.1,0.8412]
[1729788068978,0.4423,2521.5,2521.1,0.8412]
[1729788069177,0.39683,2521.6,2521.2,1.11633714]
[1729788069378,0.39683,2521.6,2521.5,0.39684]
[1729788069678,0.39682,2521.7,2521.6,0.39681]
[1729788070078,1.3012,2521.8,2521.7,0.39681]
[1729788070079,1.698,2521.8,2521.7,0.39681]
[1729788070583,0.39682,2521.7,2521.6,0.39681]
[1729788071276,1.3012,2521.8,2521.3,6.98806939]
[1729788071482,0.39683,2521.7,2521.6,0.39681]
[1729788071878,1.2688,2521.8,2521.7,0.39681]
[1729788072979,1.2688,2521.8,2521.3,6.98806939]
[1729788072980,0.872,2521.8,2521.3,3.2078]
[1729788073287,0.39686,2521.5,2521.4,0.39685]
[1729788075174,0.39677,2522.0,2521.8,0.39679]
[1729788075488,5.66903578,2522.5,2521.9,1.85745]
[1729788075684,0.39674,2522.2,2522.1,0.39674]
[1729788076280,0.39675,2522.1,2522.0,0.39675]
[1729788076686,0.8309,2522.3,2521.9,4.0733]
[1729788076885,0.39674,2522.2,2522.1,0.39674]
[1729788077791,0.39674,2522.2,2521.9,3.60457]
[1729788077792,0.39676,2522.0,2521.9,3.60457]
[1729788077999,0.39676,2522.0,2521.9,0.39677]
[1729788080188,5.03051,2522.3,2521.7,0.99203]
[1729788080189,4.0387,2522.3,2521.7,0.99203]
[1729788080494,0.39676,2522.1,2522.0,0.39675]
[1729788080788,0.99184,2522.2,2521.6,5.99588939]
[1729788081095,0.3968,2521.8,2521.7,0.39679]
[1729788081290,0.81418,2522.0,2521.6,4.19987]
[1729788081495,0.81418,2522.0,2521.9,0.39678]
[1729788087595,0.4174,2522.0,2521.7,3.2078]
[1729788087797,0.80129,2521.9,2521.8,0.39678]
[1729788093091,0.39681,2521.8,2521.7,3.60459]
[1729788093400,0.4045,2521.9,2521.7,3.2078]
[1729788093701,0.80129,2521.9,2521.8,0.39679]
[1729788096295,0.80129,2521.9,2521.8,1.68342557]
[1729788098702,0.4174,2522.0,2521.8,1.28663557]
[1729788098894,3.2078,2522.3,2522.1,0.39673]
[1729788098895,2.09897557,2522.2,2522.1,0.39673]
[1729788099095,2.51637557,2522.2,2522.1,0.39673]
[1729788099295,6.48117557,2522.2,2522.1,0.39673]
[1729788099700,6.48117557,2522.2,2521.9,1.28663557]
[1729788099901,0.39676,2522.1,2522.0,0.39675]
[1729788101499,1.68339557,2522.1,2522.0,0.39675]
[1729788101898,1.68339557,2522.1,2521.5,0.4244]
[1729788101899,5.25143557,2522.1,2521.5,0.4244]
[1729788102199,0.39683,2521.6,2521.5,1.68347557]
[1729788102602,0.82853,2521.6,2521.5,1.68347557]
[1729788103002,0.82853,2521.6,2521.5,0.39684]
[1729788103003,2.11516557,2521.6,2521.5,0.39684]
[1729788108301,2.11516557,2521.6,2521.5,1.68347557]
[1729788108502,0.82853,2521.6,2521.5,1.68347557]
[1729788109097,3.2078,2522.1,2521.5,2.27874557]
[1729788109406,1.68342557,2521.9,2521.8,0.39678]
[1729788111007,0.39679,2521.8,2521.7,2.53462557]
[1729788112610,1.68342557,2521.8,2521.7,1.24799]
[1729788113903,1.28663557,2521.8,2521.7,1.24799]
[1729788114206,1.68342557,2521.8,2521.7,2.53462557]
[1729788114511,1.68342557,2521.8,2521.7,1.24799]
[1729788115101,1.68342557,2521.8,2521.7,0.39679]
[1729788115301,1.68342557,2521.8,2521.6,1.68344557]
[1729788115302,0.39681,2521.7,2521.6,1.68344557]
[1729788115507,1.68344557,2521.7,2521.6,1.68344557]
[1729788115704,1.68344557,2521.7,2521.6,0.39681]
[1729788117103,1.28663557,2521.7,2521.5,1.72383557]
[1729788117306,0.39684,2521.5,2521.4,2.12447557]
[1729788117509,1.68347557,2521.5,2521.3,4.49443557]
[1729788117713,1.68347557,2521.5,2521.4,0.39686]
[1729788119212,1.68347557,2521.5,2521.2,1.28663557]
[1729788119213,1.28663557,2521.5,2521.2,1.28663557]
[1729788119410,0.39687,2521.4,2521.3,0.39686]
[1729788119714,1.68350557,2521.4,2521.3,0.39686]
[1729788122011,1.68350557,2521.4,2521.3,1.68349557]
[1729788123302,1.68350557,2521.4,2521.0,4.4377]
[1729788123303,1.28663557,2521.4,2521.0,0.8192]
[1729788123505,1.68352557,2521.2,2521.1,0.39691]
[1729788123715,1.68352557,2521.2,2521.1,1.68354557]
[1729788123903,0.39686,2521.5,2521.4,0.39685]
[1729788124108,0.39686,2521.5,2521.4,1.68348557]
[1729788126917,1.68349557,2521.5,2521.4,0.39685]
[1729788127811,0.39688,2521.4,2521.3,0.39686]
[1729788128022,1.68351557,2521.4,2521.3,0.39686]
[1729788128517,0.39688,2521.4,2521.3,0.39686]
[1729788128912,0.39688,2521.4,2521.3,1.68349557]
[1729788130019,0.39688,2521.4,2521.3,0.39686]
[1729788130220,0.39688,2521.4,2521.3,0.5209681]
[1729788130421,1.68349557,2521.5,2521.4,0.39686]
[1729788131920,1.28663557,2521.5,2521.3,3.2078]
[1729788132227,1.68349557,2521.4,2521.3,0.39687]
[1729788132420,1.68349557,2521.4,2521.1,0.39689]
[1729788132421,0.39691,2521.2,2521.1,0.39689]
[1729788132619,1.68354557,2521.2,2521.1,0.52100923]
[1729788132924,1.68354557,2521.2,2521.1,0.39689]
[1729788133221,2.09264557,2521.2,2521.1,1.68352557]
[1729788135724,2.09264557,2521.2,2521.1,0.39689]
[1729788136122,2.09264557,2521.2,2521.1,1.68352557]
[1729788136123,1.69573557,2521.2,2521.1,1.68352557]
[1729788136321,0.4091,2521.2,2521.1,1.68352557]
[1729788137020,0.4091,2521.2,2521.1,2.24524214]
[1729788137218,0.4091,2521.2,2521.1,2.12112557]
[1729788137424,0.4091,2521.2,2521.1,2.24524052]
[1729788137625,0.4091,2521.2,2521.1,2.12112557]
[1729788138117,3.2078,2521.8,2521.1,1.72423557]
[1729788138317,2.11638557,2521.5,2521.4,0.39684]
[1729788139020,4.67728578,2521.9,2521.4,1.28663557]
[1729788139220,1.68344557,2521.8,2521.7,0.3968]
[1729788139616,5.64904557,2521.8,2521.7,0.3968]
[1729788139922,0.39683,2521.7,2521.6,0.39682]
[1729788140113,1.68346557,2521.7,2521.6,0.39682]
[1729788144115,0.39684,2521.6,2521.5,0.39683]
[1729788144320,2.97707557,2521.6,2521.5,0.39683]
[1729788150125,1.69044,2521.6,2521.5,0.39683]
[1729788150332,2.97706557,2521.6,2521.5,0.39683]
[1729788151526,0.39686,2521.5,2521.4,0.39684]
[1729788151725,1.68349557,2521.5,2521.4,0.39684]
[1729788153326,6.24434557,2521.5,2521.0,4.61318]
[1729788153631,1.28663557,2521.1,2521.0,5.30445557]
[1729788153823,0.99211,2521.5,2521.0,7.24066649]
[1729788153824,1.28663557,2521.2,2521.0,7.24066649]
[1729788154029,2.15233557,2521.2,2521.1,1.14161609]
[1729788155031,2.54922557,2521.2,2521.1,1.14161609]
[1729788155832,2.15233557,2521.2,2521.1,1.14161609]
[1729788156033,2.54922557,2521.2,2521.1,2.42825166]
[1729788156537,2.15233557,2521.2,2521.1,2.42825166]
[1729788156936,2.54922557,2521.2,2521.1,1.14161609]
[1729788158033,2.54922557,2521.2,2521.1,0.39691]
[1729788158338,2.54922557,2521.2,2521.1,1.14160303]
[1729788158535,2.54922557,2521.2,2521.1,1.01748753]
[1729788159437,2.54922557,2521.2,2521.1,0.39691]
[1729788159638,2.54922557,2521.2,2521.1,0.52103356]
[1729788161137,6.51562557,2521.2,2521.1,0.12412356]
[1729788161539,6.11873557,2521.2,2520.8,1.28663557]
[1729788161740,0.39694,2521.0,2520.9,0.39693]
[1729788162740,0.39694,2520.9,2520.8,1.68357557]
[1729788162956,1.68357557,2520.9,2520.8,0.39694]
[1729788165642,0.39695,2520.8,2520.7,1.68359557]
[1729788165944,2.55178557,2520.8,2520.7,2.00635135]
[1729788166145,2.55178557,2520.8,2520.7,1.68359557]
[1729788166339,2.55178557,2520.8,2520.7,1.80773181]
[1729788166747,2.15483557,2520.8,2520.7,1.80773181]
[1729788168037,2.55178557,2520.8,2520.7,1.68359557]
[1729788168241,2.55178557,2520.8,2520.7,1.80772968]
[1729788168439,2.55178557,2520.8,2520.7,0.52109411]
[1729788168743,0.39697,2520.7,2520.6,3.60478]
[1729788168949,0.4327,2520.7,2520.6,5.01556016]
[1729788169137,2.55179557,2520.8,2520.7,0.39697]
[1729788173646,1.26516,2520.8,2520.7,0.39697]
[1729788173837,2.15483557,2520.8,2520.7,0.39697]
[1729788174042,2.55178557,2520.8,2520.7,0.39697]
[1729788179856,0.39699,2520.7,2520.6,0.39697]
[1729788180152,1.68362557,2520.7,2520.6,0.39697]
[1729788183149,1.28663557,2520.7,2520.4,3.6286]
[1729788183355,1.68363557,2520.5,2520.4,3.6048]
[1729788183948,2.09863557,2520.5,2520.4,3.6048]
[1729788185351,1.70163557,2520.5,2520.1,5.04523]